[Event "Live Chess"]
[Site "Chess.com"]
[Date "2023.05.20"]
[Round "-"]
[White "Tema1107"]
[Black "Chesscoach_Golichenko"]
[Result "0-1"]
[WhiteElo "1968"]
[BlackElo "2654"]
[TimeControl "300"]
[EndTime "11:30:34 PDT"]
[Termination "Chesscoach_Golichenko won on time"]

1. Nf3 {[%clk 0:04:57.5]} 1... Nf6 {[%clk 0:04:57.8]} 2. c4 {[%clk 0:04:51.4]}
2... e6 {[%clk 0:04:45.7]} 3. Nc3 {[%clk 0:04:48.4]} 3... d5 {[%clk 0:04:41.1]}
4. cxd5 {[%clk 0:04:40.3]} 4... exd5 {[%clk 0:04:38.1]} 5. d4 {[%clk 0:04:36.6]}
5... h6 {[%clk 0:04:33.2]} 6. g3 {[%clk 0:04:33.5]} 6... Bd6 {[%clk 0:04:28]} 7.
Bg2 {[%clk 0:04:31.4]} 7... O-O {[%clk 0:04:27.5]} 8. O-O {[%clk 0:04:30.2]}
8... c6 {[%clk 0:04:26.8]} 9. Bf4 {[%clk 0:04:20.3]} 9... Bxf4 {[%clk
0:04:22.6]} 10. gxf4 {[%clk 0:04:20.2]} 10... Qd6 {[%clk 0:04:16.6]} 11. e3
{[%clk 0:04:12.5]} 11... Bg4 {[%clk 0:04:14.5]} 12. Qb3 {[%clk 0:04:01.1]} 12...
Bxf3 {[%clk 0:03:54.2]} 13. Bxf3 {[%clk 0:03:59.5]} 13... b6 {[%clk 0:03:42.1]}
14. Kh1 {[%clk 0:03:52]} 14... Nbd7 {[%clk 0:03:40.3]} 15. Rg1 {[%clk
0:03:45.8]} 15... Kh8 {[%clk 0:03:38.1]} 16. Rad1 {[%clk 0:03:44]} 16... Rg8
{[%clk 0:03:26]} 17. Qc2 {[%clk 0:03:41]} 17... Nh7 {[%clk 0:03:18.5]} 18. Rg3
{[%clk 0:03:09.6]} 18... g6 {[%clk 0:02:57.3]} 19. Qe2 {[%clk 0:02:53.7]} 19...
f5 {[%clk 0:02:43.1]} 20. Rdg1 {[%clk 0:02:45.3]} 20... g5 {[%clk 0:02:39.1]}
21. Qd3 {[%clk 0:01:50.1]} 21... Qe6 {[%clk 0:02:15.9]} 22. Bd1 {[%clk
0:01:20.2]} 22... gxf4 {[%clk 0:02:12.1]} 23. exf4 {[%clk 0:01:15.3]} 23... Ndf6
{[%clk 0:02:04.2]} 24. f3 {[%clk 0:00:44.7]} 24... Rxg3 {[%clk 0:01:55.4]} 25.
hxg3 {[%clk 0:00:44.6]} 25... Rg8 {[%clk 0:01:52.8]} 26. Bc2 {[%clk 0:00:39.3]}
26... Nh5 {[%clk 0:01:42.7]} 27. Kh2 {[%clk 0:00:38]} 27... Rf8 {[%clk
0:01:30.6]} 28. Qd2 {[%clk 0:00:31.5]} 28... Qf6 {[%clk 0:01:19.1]} 29. Qe3
{[%clk 0:00:23.3]} 29... Ng7 {[%clk 0:01:16.8]} 30. Re1 {[%clk 0:00:16.8]} 30...
h5 {[%clk 0:01:12.8]} 31. Kh3 {[%clk 0:00:14.5]} 31... h4 {[%clk 0:01:08.5]} 32.
gxh4 {[%clk 0:00:12.6]} 32... Re8 {[%clk 0:01:02]} 33. Qf2 {[%clk 0:00:10.6]}
33... Ne6 {[%clk 0:00:57]} 34. Re5 {[%clk 0:00:08.1]} 34... Nxf4+ {[%clk
0:00:55.8]} 35. Kh2 {[%clk 0:00:07.6]} 35... Rxe5 {[%clk 0:00:54.5]} 36. dxe5
{[%clk 0:00:07.5]} 36... Qxe5 {[%clk 0:00:54.3]} 37. Qg3 {[%clk 0:00:05.9]}
37... d4 {[%clk 0:00:47.9]} 38. Nd1 {[%clk 0:00:01.2]} 38... Qe2+ {[%clk
0:00:45.4]} 39. Kg1 {[%clk 0:00:00.5]} 39... Qxc2 {[%clk 0:00:40.6]} 0-1

[Event "Live Chess"]
[Site "Chess.com"]
[Date "2023.05.20"]
[Round "-"]
[White "lightningorderyt"]
[Black "Enhard"]
[Result "0-1"]
[WhiteElo "558"]
[BlackElo "1441"]
[TimeControl "300"]
[EndTime "11:30:34 PDT"]
[Termination "Enhard won by resignation"]

1. d4 {[%clk 0:04:48.7]} 1... c6 {[%clk 0:04:58.2]} 2. e4 {[%clk 0:04:46.9]}
2... d5 {[%clk 0:04:56.9]} 3. exd5 {[%clk 0:04:41]} 3... cxd5 {[%clk 0:04:55.8]}
4. Nf3 {[%clk 0:04:40.3]} 4... Bf5 {[%clk 0:04:54.3]} 5. Nc3 {[%clk 0:04:38.1]}
5... e6 {[%clk 0:04:52.6]} 6. Bf4 {[%clk 0:04:29.4]} 6... Nc6 {[%clk 0:04:50.7]}
7. Bb5 {[%clk 0:04:26.5]} 7... a6 {[%clk 0:04:49.2]} 8. Ba4 {[%clk 0:04:22.3]}
8... b5 {[%clk 0:04:46.8]} 9. Bb3 {[%clk 0:04:18.4]} 9... Nf6 {[%clk 0:04:45]}
10. O-O {[%clk 0:04:11.8]} 10... Be7 {[%clk 0:04:42.2]} 11. a4 {[%clk
0:03:53.3]} 11... O-O {[%clk 0:04:39.2]} 12. axb5 {[%clk 0:03:43.1]} 12... axb5
{[%clk 0:04:37.3]} 13. Nxb5 {[%clk 0:03:34.3]} 13... Rxa1 {[%clk 0:04:29.5]} 14.
Qxa1 {[%clk 0:03:34.2]} 14... Qb6 {[%clk 0:04:20.6]} 15. Nc7 {[%clk 0:03:06.8]}
15... Nxd4 {[%clk 0:04:14.4]} 16. Nxd4 {[%clk 0:02:54.8]} 16... Qxd4 {[%clk
0:04:09.7]} 17. g3 {[%clk 0:02:36.3]} 17... Bh3 {[%clk 0:04:02.8]} 18. Rd1
{[%clk 0:02:29]} 18... Qe4 {[%clk 0:04:00.6]} 19. f3 {[%clk 0:02:18.7]} 19...
Qxf3 {[%clk 0:03:59.1]} 20. Rd2 {[%clk 0:02:02.7]} 20... Bc5+ {[%clk 0:03:57.2]}
0-1

[Event "Live Chess"]
[Site "Chess.com"]
[Date "2023.05.20"]
[Round "-"]
[White "chessleanstrategist"]
[Black "Olisingapore"]
[Result "0-1"]
[WhiteElo "400"]
[BlackElo "1908"]
[TimeControl "300"]
[EndTime "11:30:48 PDT"]
[Termination "Olisingapore won on time"]

1. c4 {[%clk 0:04:58.7]} 1... e5 {[%clk 0:04:55.4]} 2. Nc3 {[%clk 0:04:44.9]}
2... Bb4 {[%clk 0:04:45.9]} 3. g3 {[%clk 0:04:29.8]} 3... Nf6 {[%clk 0:04:36.8]}
4. Nf3 {[%clk 0:04:22.8]} 4... c6 {[%clk 0:04:24.9]} 5. Bg2 {[%clk 0:04:19.1]}
5... d5 {[%clk 0:04:23.3]} 6. b3 {[%clk 0:04:09]} 6... d4 {[%clk 0:04:03.8]} 7.
Nb1 {[%clk 0:03:41.6]} 7... e4 {[%clk 0:03:57.2]} 8. Ne5 {[%clk 0:03:12]} 8...
O-O {[%clk 0:03:47.6]} 9. e3 {[%clk 0:02:04.5]} 9... d3 {[%clk 0:03:23.8]} 10.
Bb2 {[%clk 0:01:44.3]} 10... Nbd7 {[%clk 0:03:17.4]} 11. Nxd7 {[%clk 0:01:41.9]}
11... Qxd7 {[%clk 0:03:17.3]} 12. O-O {[%clk 0:01:39.5]} 12... Qd6 {[%clk
0:02:58.7]} 13. a3 {[%clk 0:01:35.4]} 13... Ba5 {[%clk 0:02:51.6]} 14. b4 {[%clk
0:01:31.5]} 14... Bc7 {[%clk 0:02:49.9]} 15. Bxf6 {[%clk 0:01:27.1]} 15... Qxf6
{[%clk 0:02:48.7]} 16. Nc3 {[%clk 0:01:16.4]} 16... Re8 {[%clk 0:02:35.9]} 17.
Nxe4 {[%clk 0:01:03.7]} 17... Qg6 {[%clk 0:02:33.3]} 18. Qb3 {[%clk 0:00:36.2]}
18... Rxe4 {[%clk 0:02:25.7]} 19. Qxd3 {[%clk 0:00:27.7]} 19... Re6 {[%clk
0:02:18.6]} 20. Qxg6 {[%clk 0:00:24.1]} 20... Rxg6 {[%clk 0:02:18.5]} 21. a4
{[%clk 0:00:09.9]} 21... Be5 {[%clk 0:02:17.8]} 22. d4 {[%clk 0:00:07.9]} 22...
Bd6 {[%clk 0:02:15.5]} 23. c5 {[%clk 0:00:06.7]} 23... Be7 {[%clk 0:02:14.2]}
24. Rfd1 {[%clk 0:00:02.5]} 24... Bg4 {[%clk 0:02:12.8]} 0-1

[Event "Live Chess"]
[Site "Chess.com"]
[Date "2023.05.20"]
[Round "-"]
[White "smoggyrabbit"]
[Black "manthanit"]
[Result "1-0"]
[WhiteElo "1621"]
[BlackElo "952"]
[TimeControl "300"]
[EndTime "11:30:55 PDT"]
[Termination "smoggyrabbit won by resignation"]

1. d4 {[%clk 0:04:58.4]} 1... e6 {[%clk 0:04:59.3]} 2. Nf3 {[%clk 0:04:57.2]}
2... d5 {[%clk 0:04:58.8]} 3. e3 {[%clk 0:04:56.4]} 3... c5 {[%clk 0:04:58.2]}
4. b3 {[%clk 0:04:54]} 4... a6 {[%clk 0:04:57.3]} 5. Bd3 {[%clk 0:04:52.6]} 5...
Nc6 {[%clk 0:04:54.4]} 6. O-O {[%clk 0:04:50.4]} 6... Qb6 {[%clk 0:04:53.2]} 7.
Bb2 {[%clk 0:04:49]} 7... Nf6 {[%clk 0:04:51.2]} 8. Qc1 {[%clk 0:03:29.5]} 8...
Bd6 {[%clk 0:04:43.1]} 9. Nbd2 {[%clk 0:03:26.9]} 9... Qc7 {[%clk 0:04:38.2]}
10. h3 {[%clk 0:03:12.1]} 10... e5 {[%clk 0:04:15.3]} 11. dxe5 {[%clk
0:02:48.3]} 11... Nxe5 {[%clk 0:04:13.2]} 12. Be2 {[%clk 0:02:47]} 12... Nxf3+
{[%clk 0:04:07.3]} 13. Nxf3 {[%clk 0:02:46.9]} 13... O-O {[%clk 0:03:43.7]} 14.
Bxf6 {[%clk 0:02:43.6]} 14... gxf6 {[%clk 0:03:40]} 15. Qd2 {[%clk 0:02:28.4]}
15... Kh8 {[%clk 0:03:35.8]} 16. Qxd5 {[%clk 0:02:25.8]} 16... Be6 {[%clk
0:03:29]} 17. Qh5 {[%clk 0:02:21.6]} 17... Rg8 {[%clk 0:03:21.1]} 18. Bd3 {[%clk
0:02:19.2]} 18... Rg6 {[%clk 0:02:55.9]} 19. Bxg6 {[%clk 0:02:17]} 19... fxg6
{[%clk 0:02:54.4]} 20. Qh4 {[%clk 0:02:14.5]} 20... Be7 {[%clk 0:02:50.6]} 21.
Rad1 {[%clk 0:02:06.2]} 21... b5 {[%clk 0:02:34]} 22. Rd2 {[%clk 0:01:58.8]}
22... f5 {[%clk 0:02:31.6]} 23. Ng5 {[%clk 0:01:51.4]} 23... Bxg5 {[%clk
0:02:23.2]} 24. Qxg5 {[%clk 0:01:49.8]} 24... Qe5 {[%clk 0:02:15.5]} 25. Rfd1
{[%clk 0:01:45.6]} 25... c4 {[%clk 0:02:03.2]} 26. Qe7 {[%clk 0:01:35.4]} 26...
cxb3 {[%clk 0:01:45.6]} 27. Rd8+ {[%clk 0:01:33.6]} 27... Rxd8 {[%clk
0:01:43.6]} 28. Rxd8+ {[%clk 0:01:31.7]} 1-0

[Event "Live Chess"]
[Site "Chess.com"]
[Date "2023.05.20"]
[Round "-"]
[White "GMHarry-youtube"]
[Black "flyingpuffins"]
[Result "1-0"]
[WhiteElo "2112"]
[BlackElo "1976"]
[TimeControl "300"]
[EndTime "11:30:57 PDT"]
[Termination "GMHarry-youtube won by checkmate"]

1. e4 {[%clk 0:04:58.8]} 1... d5 {[%clk 0:04:58]} 2. exd5 {[%clk 0:04:58.7]}
2... Qxd5 {[%clk 0:04:54.4]} 3. Nc3 {[%clk 0:04:58.2]} 3... Qe5+ {[%clk
0:04:53.9]} 4. Qe2 {[%clk 0:04:56.8]} 4... Qxe2+ {[%clk 0:04:52.7]} 5. Bxe2
{[%clk 0:04:56.7]} 5... Nf6 {[%clk 0:04:52.1]} 6. d4 {[%clk 0:04:56.1]} 6... Bf5
{[%clk 0:04:51.3]} 7. Bf4 {[%clk 0:04:52.5]} 7... c6 {[%clk 0:04:46.3]} 8. O-O-O
{[%clk 0:04:50.3]} 8... e6 {[%clk 0:04:43.7]} 9. Nf3 {[%clk 0:04:48.5]} 9... Bb4
{[%clk 0:04:42]} 10. Ne5 {[%clk 0:04:44.5]} 10... Bxc3 {[%clk 0:04:38.9]} 11.
bxc3 {[%clk 0:04:44.4]} 11... O-O {[%clk 0:04:38.5]} 12. h4 {[%clk 0:04:39.3]}
12... h6 {[%clk 0:04:35.5]} 13. g4 {[%clk 0:04:35.6]} 13... Bh7 {[%clk
0:04:34.5]} 14. g5 {[%clk 0:04:33.8]} 14... hxg5 {[%clk 0:04:31.7]} 15. hxg5
{[%clk 0:04:33.7]} 15... Ne4 {[%clk 0:04:30.1]} 16. Bd3 {[%clk 0:04:31.1]} 16...
Bf5 {[%clk 0:04:23.9]} 17. Rh4 {[%clk 0:04:23.7]} 17... Nxf2 {[%clk 0:03:29.3]}
18. Rf1 {[%clk 0:04:19.8]} 18... Nxd3+ {[%clk 0:03:25.8]} 19. cxd3 {[%clk
0:04:17.1]} 19... Bxd3 {[%clk 0:03:25.3]} 20. Rfh1 {[%clk 0:04:11.3]} 20... f6
{[%clk 0:03:18.5]} 21. Rh8# {[%clk 0:04:09.4]} 1-0

[Event "Live Chess"]
[Site "Chess.com"]
[Date "2023.05.20"]
[Round "-"]
[White "1600x"]
[Black "MrDodgy"]
[Result "0-1"]
[WhiteElo "1556"]
[BlackElo "2316"]
[TimeControl "300"]
[EndTime "11:30:59 PDT"]
[Termination "MrDodgy won by resignation"]

1. d4 {[%clk 0:04:57.8]} 1... Nf6 {[%clk 0:04:56.7]} 2. Nc3 {[%clk 0:04:52.9]}
2... d5 {[%clk 0:04:55.6]} 3. Nf3 {[%clk 0:04:50.6]} 3... g6 {[%clk 0:04:52.4]}
4. e4 {[%clk 0:04:49.2]} 4... dxe4 {[%clk 0:04:50.9]} 5. Nxe4 {[%clk 0:04:49.1]}
5... Nxe4 {[%clk 0:04:48.2]} 6. Ne5 {[%clk 0:04:49]} 6... Bg7 {[%clk 0:04:45.2]}
7. Nf3 {[%clk 0:04:47.6]} 7... O-O {[%clk 0:04:43.2]} 8. Bd3 {[%clk 0:04:44.6]}
8... Nf6 {[%clk 0:04:39.5]} 9. c3 {[%clk 0:04:43.3]} 9... c5 {[%clk 0:04:37.7]}
10. Be3 {[%clk 0:04:41.7]} 10... cxd4 {[%clk 0:04:36.7]} 11. cxd4 {[%clk
0:04:39.9]} 11... Nc6 {[%clk 0:04:36.2]} 12. h3 {[%clk 0:04:38.5]} 12... Nd5
{[%clk 0:04:34.2]} 13. O-O {[%clk 0:04:36.3]} 13... Nxe3 {[%clk 0:04:32]} 14.
fxe3 {[%clk 0:04:35.7]} 14... e5 {[%clk 0:04:31.3]} 15. d5 {[%clk 0:04:34.4]}
15... Qxd5 {[%clk 0:04:28.4]} 16. e4 {[%clk 0:04:32.8]} 16... Qc5+ {[%clk
0:04:25.8]} 17. Kh1 {[%clk 0:04:31.3]} 17... Be6 {[%clk 0:04:24.1]} 18. Ng5
{[%clk 0:04:29.5]} 18... Nd4 {[%clk 0:04:08.1]} 19. Rc1 {[%clk 0:04:17.3]} 19...
Qb6 {[%clk 0:04:05]} 20. Nxe6 {[%clk 0:04:09.9]} 20... Nxe6 {[%clk 0:04:04.9]}
21. Qb3 {[%clk 0:04:08.2]} 21... Qxb3 {[%clk 0:04:01.4]} 22. axb3 {[%clk
0:03:42.9]} 22... Rac8 {[%clk 0:03:58.8]} 23. Rxc8 {[%clk 0:03:28.7]} 23... Rxc8
{[%clk 0:03:57]} 24. Bc4 {[%clk 0:03:27.3]} 24... Rc6 {[%clk 0:03:50.8]} 25. h4
{[%clk 0:03:25.4]} 25... a6 {[%clk 0:03:41.5]} 26. Bd5 {[%clk 0:03:22.1]} 26...
Rb6 {[%clk 0:03:36.1]} 27. g3 {[%clk 0:03:20.5]} 27... Kf8 {[%clk 0:03:30.3]}
28. h5 {[%clk 0:03:19]} 28... Ke7 {[%clk 0:03:27.1]} 29. Kg2 {[%clk 0:03:16.4]}
29... f6 {[%clk 0:03:16.6]} 30. Rh1 {[%clk 0:03:08.3]} 30... Nc7 {[%clk
0:03:13.8]} 31. h6 {[%clk 0:03:06.2]} 31... Bf8 {[%clk 0:03:12]} 32. Bc4 {[%clk
0:03:03.1]} 32... Nb5 {[%clk 0:03:09.4]} 33. Rd1 {[%clk 0:02:54.2]} 33... Nd6
{[%clk 0:03:06.6]} 34. Bd5 {[%clk 0:02:51.5]} 34... f5 {[%clk 0:02:56.3]} 35.
exf5 {[%clk 0:02:49.8]} 35... gxf5 {[%clk 0:02:56.2]} 36. Rh1 {[%clk 0:02:47.8]}
36... Kf6 {[%clk 0:02:52.4]} 37. Bg8 {[%clk 0:02:45.3]} 37... Kg5 {[%clk
0:02:42.7]} 38. Rf1 {[%clk 0:02:43.6]} 38... Bxh6 {[%clk 0:02:39.9]} 39. Be6
{[%clk 0:02:40.7]} 39... Kf6 {[%clk 0:02:36.8]} 40. Bd5 {[%clk 0:02:39.4]} 40...
Bg5 {[%clk 0:02:32.9]} 41. g4 {[%clk 0:02:37.4]} 41... f4 {[%clk 0:02:31.5]} 42.
Kf2 {[%clk 0:02:36]} 42... e4 {[%clk 0:02:30.4]} 43. Ke2 {[%clk 0:02:35]} 43...
Ke5 {[%clk 0:02:28.8]} 44. Rd1 {[%clk 0:02:33.6]} 44... f3+ {[%clk 0:02:25.9]}
45. Kf1 {[%clk 0:02:32.5]} 45... e3 {[%clk 0:02:23.7]} 46. Bxf3 {[%clk
0:02:30.7]} 46... Ne4 {[%clk 0:02:13.2]} 47. Ke2 {[%clk 0:02:29]} 47... Rxb3
{[%clk 0:02:10.5]} 48. Rb1 {[%clk 0:02:27.4]} 48... Nc3+ {[%clk 0:02:07.5]} 49.
bxc3 {[%clk 0:02:26.1]} 49... Rxb1 {[%clk 0:02:06.5]} 50. Kd3 {[%clk 0:02:24.9]}
50... Rf1 {[%clk 0:02:04.4]} 51. Bxb7 {[%clk 0:02:23.3]} 51... a5 {[%clk
0:02:01.3]} 52. Ba6 {[%clk 0:02:22.2]} 52... a4 {[%clk 0:02:00]} 53. Ke2 {[%clk
0:02:20.9]} 53... Rf2+ {[%clk 0:01:58.5]} 54. Ke1 {[%clk 0:02:19.9]} 54... Rc2
{[%clk 0:01:56.1]} 55. Kf1 {[%clk 0:02:18.4]} 55... a3 {[%clk 0:01:55.1]} 56.
Bc4 {[%clk 0:02:16.6]} 56... a2 {[%clk 0:01:53.9]} 57. Kg1 {[%clk 0:02:14.2]}
57... a1=Q+ {[%clk 0:01:52.2]} 0-1

[Event "Live Chess"]
[Site "Chess.com"]
[Date "2023.05.20"]
[Round "-"]
[White "booktrunk"]
[Black "BillythekidFellowes"]
[Result "0-1"]
[WhiteElo "1335"]
[BlackElo "2013"]
[TimeControl "300"]
[EndTime "11:31:07 PDT"]
[Termination "BillythekidFellowes won by checkmate"]

1. d4 {[%clk 0:04:58]} 1... e5 {[%clk 0:04:59.9]} 2. dxe5 {[%clk 0:04:55.8]}
2... Nc6 {[%clk 0:04:59]} 3. Bf4 {[%clk 0:04:53.8]} 3... Qe7 {[%clk 0:04:58.4]}
4. Nf3 {[%clk 0:04:51]} 4... Qb4+ {[%clk 0:04:57.6]} 5. Bd2 {[%clk 0:04:47.6]}
5... Qxb2 {[%clk 0:04:56.8]} 6. Bc3 {[%clk 0:04:46.8]} 6... Bb4 {[%clk
0:04:56.1]} 7. e3 {[%clk 0:04:26.2]} 7... Qxa1 {[%clk 0:04:51]} 8. Bxb4 {[%clk
0:04:16.4]} 8... Nxb4 {[%clk 0:04:50.9]} 9. Bd3 {[%clk 0:04:08.3]} 9... Nxd3+
{[%clk 0:04:49.6]} 10. cxd3 {[%clk 0:04:07.1]} 10... Qxa2 {[%clk 0:04:49]} 11.
O-O {[%clk 0:04:05.7]} 11... Ne7 {[%clk 0:04:47.9]} 12. Nc3 {[%clk 0:04:02.6]}
12... Qa3 {[%clk 0:04:46.8]} 13. Ne4 {[%clk 0:03:59]} 13... O-O {[%clk
0:04:43.2]} 14. d4 {[%clk 0:03:58.1]} 14... Ng6 {[%clk 0:04:40.9]} 15. Nc5
{[%clk 0:03:56.4]} 15... b6 {[%clk 0:04:39.9]} 16. Nd3 {[%clk 0:03:53.3]} 16...
Bb7 {[%clk 0:04:38.8]} 17. Qc2 {[%clk 0:03:51.7]} 17... Bxf3 {[%clk 0:04:37.3]}
18. gxf3 {[%clk 0:03:50.9]} 18... Qe7 {[%clk 0:04:36.1]} 19. Qxc7 {[%clk
0:03:48.6]} 19... Qg5+ {[%clk 0:04:35.3]} 20. Kh1 {[%clk 0:03:47.1]} 20... Nh4
{[%clk 0:04:35.2]} 21. Rg1 {[%clk 0:03:46.2]} 21... Qf5 {[%clk 0:04:34.3]} 22.
Nf4 {[%clk 0:03:41.9]} 22... g5 {[%clk 0:04:31.4]} 23. Rg3 {[%clk 0:03:31.5]}
23... Kh8 {[%clk 0:04:29.9]} 24. Qb7 {[%clk 0:03:28.6]} 24... gxf4 {[%clk
0:04:26.6]} 25. exf4 {[%clk 0:03:24]} 25... Rac8 {[%clk 0:04:25.7]} 26. h3
{[%clk 0:03:20.1]} 26... Rg8 {[%clk 0:04:23.1]} 27. Kh2 {[%clk 0:03:08]} 27...
Rxg3 {[%clk 0:04:15.8]} 28. Kxg3 {[%clk 0:03:07]} 28... Rg8+ {[%clk 0:04:12.8]}
29. Kh2 {[%clk 0:03:03.9]} 29... Rg2+ {[%clk 0:04:10]} 30. Kh1 {[%clk
0:03:02.4]} 30... Qxh3# {[%clk 0:04:09.9]} 0-1

[Event "Live Chess"]
[Site "Chess.com"]
[Date "2023.05.20"]
[Round "-"]
[White "noobsmoker24"]
[Black "EdenHazard8"]
[Result "0-1"]
[WhiteElo "1379"]
[BlackElo "2091"]
[TimeControl "300"]
[EndTime "11:31:13 PDT"]
[Termination "EdenHazard8 won by resignation"]

1. e4 {[%clk 0:04:57]} 1... e5 {[%clk 0:04:59.2]} 2. Nf3 {[%clk 0:04:55.6]} 2...
Nc6 {[%clk 0:04:58.4]} 3. Bc4 {[%clk 0:04:54.9]} 3... Bc5 {[%clk 0:04:56.8]} 4.
c3 {[%clk 0:04:53.9]} 4... Nf6 {[%clk 0:04:52.6]} 5. d3 {[%clk 0:04:53.2]} 5...
d6 {[%clk 0:04:50.4]} 6. Nbd2 {[%clk 0:04:52.2]} 6... h6 {[%clk 0:04:48.1]} 7.
Bb3 {[%clk 0:04:49.6]} 7... O-O {[%clk 0:04:47.3]} 8. O-O {[%clk 0:04:45.9]}
8... Bg4 {[%clk 0:04:44.1]} 9. Re1 {[%clk 0:04:44.3]} 9... Bh5 {[%clk
0:04:35.2]} 10. Nf1 {[%clk 0:04:42.9]} 10... Ng4 {[%clk 0:04:32.8]} 11. d4
{[%clk 0:04:40.1]} 11... exd4 {[%clk 0:04:30.9]} 12. cxd4 {[%clk 0:04:39.5]}
12... Bb6 {[%clk 0:04:29.7]} 13. h3 {[%clk 0:04:37.5]} 13... Nf6 {[%clk
0:04:28.2]} 14. Ng3 {[%clk 0:04:35.9]} 14... Bg6 {[%clk 0:04:26.8]} 15. Bc2
{[%clk 0:04:22.4]} 15... Nb4 {[%clk 0:04:20.3]} 16. Bb3 {[%clk 0:04:21]} 16...
Re8 {[%clk 0:04:17.7]} 17. e5 {[%clk 0:04:07.8]} 17... dxe5 {[%clk 0:04:17.6]}
18. dxe5 {[%clk 0:04:07.1]} 18... Qxd1 {[%clk 0:04:14.6]} 19. Rxd1 {[%clk
0:04:06.3]} 19... Ne4 {[%clk 0:04:13]} 20. Nxe4 {[%clk 0:04:04.7]} 20... Bxe4
{[%clk 0:04:12.9]} 21. Bf4 {[%clk 0:03:44.7]} 21... Rad8 {[%clk 0:04:09.2]} 22.
Nd2 {[%clk 0:03:40]} 22... Bg6 {[%clk 0:04:04.7]} 23. Nc4 {[%clk 0:03:38.7]}
23... Nd3 {[%clk 0:03:58.4]} 24. Bg3 {[%clk 0:03:20.5]} 24... Bd4 {[%clk
0:03:50.1]} 25. e6 {[%clk 0:02:56.3]} 25... Re7 {[%clk 0:03:44.9]} 26. Bh4
{[%clk 0:02:46.8]} 26... f6 {[%clk 0:03:40.9]} 27. Bc2 {[%clk 0:01:42]} 27...
Nf4 {[%clk 0:03:35.1]} 28. Bb3 {[%clk 0:01:33.9]} 28... c5 {[%clk 0:03:23.4]}
29. Re1 {[%clk 0:01:25.5]} 29... b5 {[%clk 0:03:18.2]} 30. Na5 {[%clk
0:01:22.6]} 30... c4 {[%clk 0:03:12.7]} 31. Nc6 {[%clk 0:01:17.9]} 31... cxb3
{[%clk 0:02:38.3]} 32. Nxe7+ {[%clk 0:01:15.5]} 32... Kh7 {[%clk 0:02:37.9]} 33.
Nxg6 {[%clk 0:01:12.8]} 33... Nxg6 {[%clk 0:02:37.8]} 34. Bg3 {[%clk 0:01:04]}
34... Bxb2 {[%clk 0:02:34.1]} 35. Rab1 {[%clk 0:00:52.3]} 35... Bc3 {[%clk
0:02:30]} 36. Rec1 {[%clk 0:00:44.6]} 36... bxa2 {[%clk 0:02:25.9]} 37. Ra1
{[%clk 0:00:35.4]} 37... Bxa1 {[%clk 0:02:24.6]} 38. Rxa1 {[%clk 0:00:35.3]}
38... Rd2 {[%clk 0:02:23.2]} 39. Re1 {[%clk 0:00:30.1]} 39... b4 {[%clk
0:02:21]} 40. e7 {[%clk 0:00:29.5]} 40... Nxe7 {[%clk 0:02:18.9]} 41. Bf4 {[%clk
0:00:23]} 41... Rb2 {[%clk 0:02:15.9]} 0-1

[Event "Live Chess"]
[Site "Chess.com"]
[Date "2023.05.20"]
[Round "-"]
[White "vinni3012"]
[Black "viktorskliarov"]
[Result "0-1"]
[WhiteElo "1809"]
[BlackElo "2650"]
[TimeControl "300"]
[EndTime "11:31:20 PDT"]
[Termination "viktorskliarov won by resignation"]

1. d4 {[%clk 0:04:58.9]} 1... Nf6 {[%clk 0:04:56.9]} 2. c4 {[%clk 0:04:58.2]}
2... e6 {[%clk 0:04:55]} 3. Nc3 {[%clk 0:04:57.9]} 3... Bb4 {[%clk 0:04:53.2]}
4. Qc2 {[%clk 0:04:52.8]} 4... c5 {[%clk 0:04:50.9]} 5. dxc5 {[%clk 0:04:49.3]}
5... Na6 {[%clk 0:04:49.4]} 6. Nf3 {[%clk 0:04:47.7]} 6... Nxc5 {[%clk
0:04:47.9]} 7. Bd2 {[%clk 0:04:39.9]} 7... O-O {[%clk 0:04:45]} 8. e3 {[%clk
0:04:38.7]} 8... b6 {[%clk 0:04:40.3]} 9. a3 {[%clk 0:04:33.4]} 9... Bxc3 {[%clk
0:04:38.7]} 10. Bxc3 {[%clk 0:04:33.3]} 10... Bb7 {[%clk 0:04:37.2]} 11. b4
{[%clk 0:04:28.9]} 11... Be4 {[%clk 0:04:33.7]} 12. Qb2 {[%clk 0:04:24.4]} 12...
Na4 {[%clk 0:04:32.3]} 13. Qb3 {[%clk 0:04:20.9]} 13... Nxc3 {[%clk 0:04:29.9]}
14. Qxc3 {[%clk 0:04:20.8]} 14... Rc8 {[%clk 0:04:27.9]} 15. Nd2 {[%clk
0:03:43.2]} 15... d5 {[%clk 0:04:12.9]} 16. f3 {[%clk 0:03:27.2]} 16... Bg6
{[%clk 0:04:09.4]} 17. Bd3 {[%clk 0:02:47]} 17... Bxd3 {[%clk 0:04:06]} 18. Qxd3
{[%clk 0:02:45.4]} 18... dxc4 {[%clk 0:04:05.6]} 19. Qxd8 {[%clk 0:02:42.2]}
19... Rfxd8 {[%clk 0:04:03.3]} 20. Ke2 {[%clk 0:02:39.8]} 20... b5 {[%clk
0:03:53.3]} 21. e4 {[%clk 0:02:22.7]} 21... Nd7 {[%clk 0:03:43.4]} 22. f4 {[%clk
0:02:18.2]} 22... Nb6 {[%clk 0:03:40.8]} 23. Rhd1 {[%clk 0:02:07.3]} 23... Rd3
{[%clk 0:03:26.3]} 24. Nf3 {[%clk 0:02:03.3]} 24... Rcd8 {[%clk 0:03:24.8]} 25.
Ne5 {[%clk 0:01:47.6]} 25... Rxd1 {[%clk 0:03:22.5]} 26. Rxd1 {[%clk 0:01:47.5]}
26... Rxd1 {[%clk 0:03:21.2]} 27. Kxd1 {[%clk 0:01:47.4]} 27... a6 {[%clk
0:03:11]} 28. Kc2 {[%clk 0:01:44.7]} 28... Kf8 {[%clk 0:03:03.9]} 29. Nc6 {[%clk
0:01:43.7]} 29... Nd7 {[%clk 0:03:01.3]} 30. a4 {[%clk 0:01:31.4]} 30... f6
{[%clk 0:02:52.8]} 31. axb5 {[%clk 0:01:26.6]} 31... axb5 {[%clk 0:02:51.3]} 32.
Nd4 {[%clk 0:01:26]} 32... e5 {[%clk 0:02:41.7]} 33. Nxb5 {[%clk 0:01:19.7]}
33... exf4 {[%clk 0:02:39.1]} 34. Nd6 {[%clk 0:01:15.7]} 34... Ne5 {[%clk
0:02:31.5]} 35. Kc3 {[%clk 0:01:04.6]} 35... Ke7 {[%clk 0:02:29]} 36. Nxc4
{[%clk 0:01:03.6]} 36... Ng4 {[%clk 0:02:28]} 37. Kd4 {[%clk 0:00:56.8]} 37...
Nxh2 {[%clk 0:02:02.7]} 38. Kd5 {[%clk 0:00:47.5]} 38... Kd7 {[%clk 0:01:50.8]}
39. e5 {[%clk 0:00:38.1]} 39... Ng4 {[%clk 0:01:33.1]} 40. e6+ {[%clk
0:00:36.5]} 40... Ke7 {[%clk 0:01:32.2]} 41. b5 {[%clk 0:00:35.6]} 41... Ne3+
{[%clk 0:01:30.8]} 42. Kd4 {[%clk 0:00:30.1]} 42... Nxc4 {[%clk 0:00:58.1]} 43.
Kxc4 {[%clk 0:00:28.8]} 43... Kxe6 {[%clk 0:00:57.6]} 44. Kc5 {[%clk 0:00:23.7]}
44... Kd7 {[%clk 0:00:56.7]} 45. Kb6 {[%clk 0:00:21.5]} 45... h5 {[%clk
0:00:56]} 46. Ka7 {[%clk 0:00:19.5]} 46... h4 {[%clk 0:00:54.5]} 47. b6 {[%clk
0:00:18.6]} 47... h3 {[%clk 0:00:54]} 48. gxh3 {[%clk 0:00:14.1]} 48... f3
{[%clk 0:00:53.6]} 49. b7 {[%clk 0:00:14]} 49... f2 {[%clk 0:00:53.2]} 50. b8=Q
{[%clk 0:00:13.9]} 50... f1=Q {[%clk 0:00:52.8]} 51. Qb7+ {[%clk 0:00:11]} 51...
Ke6 {[%clk 0:00:51.4]} 52. Qe4+ {[%clk 0:00:09.9]} 52... Kf7 {[%clk 0:00:48.3]}
53. Qb7+ {[%clk 0:00:09]} 53... Kg6 {[%clk 0:00:47.6]} 54. Qe4+ {[%clk
0:00:05.9]} 54... Qf5 {[%clk 0:00:46.7]} 0-1